[Event "*** Titled Tuesday Blitz"]
[Site "Chess.com"]
[Date "2020.01.07"]
[Round "7"]
[White "MiroVlasenko"]
[Black "TwentyHourADay"]
[Result "1-0"]
[WhiteElo "2672"]
[BlackElo "2243"]
[TimeControl "180+2"]
[EndTime "14:31:37 PST"]
[Termination "MiroVlasenko won by resignation"]

1. d4 {[%clk 0:03:01.9]} 1... Nf6 {[%clk 0:03:00.9]} 2. Bg5 {[%clk 0:03:02.8]}
2... d5 {[%clk 0:03:00.8]} 3. e3 {[%clk 0:03:03.2]} 3... c6 {[%clk 0:02:54.3]}
4. Bxf6 {[%clk 0:03:03.4]} 4... exf6 {[%clk 0:02:55.1]} 5. c4 {[%clk 0:03:04.1]}
5... dxc4 {[%clk 0:02:53.6]} 6. Bxc4 {[%clk 0:03:03.6]} 6... f5 {[%clk
0:02:54.9]} 7. Nc3 {[%clk 0:03:03.7]} 7... Nd7 {[%clk 0:02:54.5]} 8. Qb3 {[%clk
0:02:57.7]} 8... Qf6 {[%clk 0:02:48.5]} 9. Nge2 {[%clk 0:02:52.4]} 9... Bd6
{[%clk 0:02:48.4]} 10. a4 {[%clk 0:02:48.8]} 10... Nb6 {[%clk 0:02:47.3]} 11.
Bd3 {[%clk 0:02:43.6]} 11... Be6 {[%clk 0:02:45.4]} 12. Qc2 {[%clk 0:02:44.7]}
12... O-O {[%clk 0:02:39.3]} 13. O-O {[%clk 0:02:40.8]} 13... g6 {[%clk
0:02:39.1]} 14. a5 {[%clk 0:02:37]} 14... Nd5 {[%clk 0:02:38.8]} 15. Nxd5 {[%clk
0:02:37.2]} 15... Bxd5 {[%clk 0:02:39.2]} 16. Nc3 {[%clk 0:02:38]} 16... Be6
{[%clk 0:02:22.7]} 17. a6 {[%clk 0:02:33.7]} 17... b6 {[%clk 0:02:22.2]} 18. g3
{[%clk 0:02:28]} 18... Rac8 {[%clk 0:02:21]} 19. Qe2 {[%clk 0:02:25]} 19... Qe7
{[%clk 0:02:13.6]} 20. Bc4 {[%clk 0:02:24.9]} 20... Bb4 {[%clk 0:01:55.8]} 21.
Rfc1 {[%clk 0:02:22.8]} 21... Bxc4 {[%clk 0:01:41.6]} 22. Qxc4 {[%clk
0:02:23.1]} 22... Qe6 {[%clk 0:01:42.9]} 23. Qxb4 {[%clk 0:02:19.8]} 1-0

[Event "*** Titled Tuesday Blitz"]
[Site "Chess.com"]
[Date "2020.01.07"]
[Round "7"]
[White "TST2014"]
[Black "Eliwood44"]
[Result "1-0"]
[WhiteElo "2512"]
[BlackElo "2338"]
[TimeControl "180+2"]
[EndTime "14:31:44 PST"]
[Termination "TST2014 won by resignation"]

1. d4 {[%clk 0:03:01.9]} 1... Nf6 {[%clk 0:03:00.8]} 2. c4 {[%clk 0:03:02.3]}
2... e6 {[%clk 0:03:01.8]} 3. Nf3 {[%clk 0:03:02.7]} 3... b6 {[%clk 0:03:01.8]}
4. a3 {[%clk 0:03:03.5]} 4... d5 {[%clk 0:03:02.4]} 5. Nc3 {[%clk 0:03:01.1]}
5... Bb7 {[%clk 0:03:03]} 6. cxd5 {[%clk 0:03:02.6]} 6... Nxd5 {[%clk
0:03:03.8]} 7. e3 {[%clk 0:03:03.7]} 7... Be7 {[%clk 0:03:04.4]} 8. Bb5+ {[%clk
0:03:05]} 8... Nd7 {[%clk 0:03:04.6]} 9. Nxd5 {[%clk 0:03:00]} 9... Bxd5 {[%clk
0:03:03.1]} 10. Ne5 {[%clk 0:03:01.1]} 10... c6 {[%clk 0:03:04.1]} 11. Nxc6
{[%clk 0:03:01.6]} 11... Bxc6 {[%clk 0:03:04.3]} 12. Bxc6 {[%clk 0:03:03.5]}
12... Rc8 {[%clk 0:03:05.7]} 13. Qa4 {[%clk 0:03:02.5]} 13... Rc7 {[%clk
0:03:02.7]} 14. Bd2 {[%clk 0:02:55.7]} 14... O-O {[%clk 0:03:03]} 15. O-O {[%clk
0:02:52]} 15... e5 {[%clk 0:03:03.5]} 16. Bc3 {[%clk 0:02:25.6]} 16... Nb8
{[%clk 0:03:01.8]} 17. Be4 {[%clk 0:02:20.2]} 17... exd4 {[%clk 0:03:02.7]} 18.
Bxd4 {[%clk 0:02:19.2]} 18... Bf6 {[%clk 0:03:04.1]} 19. Rad1 {[%clk 0:02:15.6]}
19... Bxd4 {[%clk 0:03:04]} 20. Rxd4 {[%clk 0:02:17.1]} 20... Qg5 {[%clk
0:03:04.8]} 21. Rd5 {[%clk 0:02:08.5]} 21... Qh6 {[%clk 0:03:01.7]} 22. Qd1
{[%clk 0:02:08.7]} 22... g6 {[%clk 0:03:00.9]} 23. b4 {[%clk 0:02:00.4]} 23...
Nc6 {[%clk 0:02:59.6]} 24. Rd7 {[%clk 0:01:59.7]} 24... Rxd7 {[%clk 0:03:00.2]}
25. Qxd7 {[%clk 0:01:59.9]} 25... Ne5 {[%clk 0:03:02.1]} 26. Qxa7 {[%clk
0:01:56.9]} 26... Rc8 {[%clk 0:02:59.5]} 27. h3 {[%clk 0:01:54.8]} 27... Nc4
{[%clk 0:02:57.6]} 28. Bd5 {[%clk 0:01:53.4]} 28... Nd2 {[%clk 0:02:51]} 29.
Qxf7+ {[%clk 0:01:52.4]} 29... Kh8 {[%clk 0:02:51]} 30. Rd1 {[%clk 0:01:44.2]}
1-0

[Event "*** Titled Tuesday Blitz"]
[Site "Chess.com"]
[Date "2020.01.07"]
[Round "7"]
[White "NTBT_DHS"]
[Black "ChessyInstinct"]
[Result "1-0"]
[WhiteElo "2629"]
[BlackElo "2464"]
[TimeControl "180+2"]
[EndTime "14:32:26 PST"]
[Termination "NTBT_DHS won by resignation"]

1. e4 {[%clk 0:03:01.9]} 1... e5 {[%clk 0:03:00.7]} 2. Nf3 {[%clk 0:03:02.4]}
2... Nc6 {[%clk 0:03:01.9]} 3. Bc4 {[%clk 0:03:03.5]} 3... Bc5 {[%clk
0:03:02.5]} 4. d4 {[%clk 0:03:03.7]} 4... exd4 {[%clk 0:02:58.1]} 5. Ng5 {[%clk
0:03:03.7]} 5... Ne5 {[%clk 0:02:54.5]} 6. Nxf7 {[%clk 0:03:00.7]} 6... Bb4+
{[%clk 0:02:30.5]} 7. c3 {[%clk 0:03:00.4]} 7... dxc3 {[%clk 0:02:12.2]} 8. bxc3
{[%clk 0:02:55.6]} 8... Qf6 {[%clk 0:01:52.4]} 9. Nxh8 {[%clk 0:02:49.8]} 9...
Nxc4 {[%clk 0:01:53.4]} 10. Qd5 {[%clk 0:02:44.5]} 10... Ne5 {[%clk 0:01:15]}
11. Qxg8+ {[%clk 0:02:43.1]} 11... Bf8 {[%clk 0:01:16.9]} 12. O-O {[%clk
0:02:40.2]} 12... d6 {[%clk 0:01:13.1]} 13. Bg5 {[%clk 0:02:40.6]} 13... Qxg5
{[%clk 0:01:10]} 14. f4 {[%clk 0:02:41.7]} 14... Nf3+ {[%clk 0:01:01.5]} 15.
Rxf3 {[%clk 0:02:41.3]} 15... Qc5+ {[%clk 0:01:03.4]} 16. Kh1 {[%clk 0:02:41.5]}
16... d5 {[%clk 0:00:54.2]} 17. Qf7+ {[%clk 0:02:37.8]} 17... Kd8 {[%clk
0:00:54]} 18. Nd2 {[%clk 0:02:34.9]} 18... Bg4 {[%clk 0:00:54.5]} 19. Rd3 {[%clk
0:02:35.7]} 19... c6 {[%clk 0:00:45.3]} 20. exd5 {[%clk 0:02:36.2]} 20... Bd6
{[%clk 0:00:37]} 21. dxc6 {[%clk 0:02:34.4]} 21... bxc6 {[%clk 0:00:37.1]} 22.
Ne4 {[%clk 0:02:35]} 1-0

[Event "*** Titled Tuesday Blitz"]
[Site "Chess.com"]
[Date "2020.01.07"]
[Round "7"]
[White "enriquetejedor"]
[Black "Martins-BR"]
[Result "1-0"]
[WhiteElo "2491"]
[BlackElo "2329"]
[TimeControl "180+2"]
[EndTime "14:32:53 PST"]
[Termination "enriquetejedor won by resignation"]

1. e4 {[%clk 0:02:59.9]} 1... c5 {[%clk 0:02:59.6]} 2. Nc3 {[%clk 0:03:00.1]}
2... a6 {[%clk 0:02:59.6]} 3. Nf3 {[%clk 0:02:49]} 3... e6 {[%clk 0:02:58.7]} 4.
d4 {[%clk 0:02:49.3]} 4... cxd4 {[%clk 0:02:59.8]} 5. Nxd4 {[%clk 0:02:51.2]}
5... Qc7 {[%clk 0:03:00.7]} 6. a4 {[%clk 0:02:49.4]} 6... Nc6 {[%clk 0:02:59.3]}
7. Nb3 {[%clk 0:02:44.1]} 7... b6 {[%clk 0:02:58.2]} 8. g3 {[%clk 0:02:44.2]}
8... Bb7 {[%clk 0:02:58.3]} 9. Bg2 {[%clk 0:02:45.6]} 9... Nf6 {[%clk
0:02:55.7]} 10. O-O {[%clk 0:02:47]} 10... Be7 {[%clk 0:02:54.1]} 11. Nd5 {[%clk
0:02:47.5]} 11... exd5 {[%clk 0:02:39.5]} 12. exd5 {[%clk 0:02:48.3]} 12... Nd8
{[%clk 0:02:40.5]} 13. Re1 {[%clk 0:02:39.9]} 13... d6 {[%clk 0:02:38.5]} 14.
Nd4 {[%clk 0:02:39.7]} 14... Bc8 {[%clk 0:01:30.3]} 15. Ra3 {[%clk 0:02:37.4]}
15... O-O {[%clk 0:01:25.3]} 16. Rc3 {[%clk 0:02:36]} 16... Qa7 {[%clk
0:01:15.9]} 17. Rce3 {[%clk 0:02:34.4]} 17... Re8 {[%clk 0:01:14.7]} 18. Qe2
{[%clk 0:02:35.2]} 18... Kf8 {[%clk 0:01:15]} 19. b3 {[%clk 0:02:33.6]} 19... b5
{[%clk 0:01:07.5]} 20. Ba3 {[%clk 0:02:33.3]} 20... Qxd4 {[%clk 0:01:02]} 21.
Rxe7 {[%clk 0:02:32.3]} 1-0

[Event "*** Titled Tuesday Blitz"]
[Site "Chess.com"]
[Date "2020.01.07"]
[Round "7"]
[White "Karina_Ivanova"]
[Black "davigator"]
[Result "0-1"]
[WhiteElo "2163"]
[BlackElo "2325"]
[TimeControl "180+2"]
[EndTime "14:33:08 PST"]
[Termination "davigator won by resignation"]

1. Nf3 {[%clk 0:03:00.6]} 1... d5 {[%clk 0:02:48.3]} 2. g3 {[%clk 0:03:01]} 2...
Bg4 {[%clk 0:02:46.8]} 3. Bg2 {[%clk 0:03:01.3]} 3... Nd7 {[%clk 0:02:47.2]} 4.
O-O {[%clk 0:03:00.6]} 4... c6 {[%clk 0:02:47.8]} 5. h3 {[%clk 0:03:01.2]} 5...
Bh5 {[%clk 0:02:48.4]} 6. d4 {[%clk 0:03:01]} 6... e6 {[%clk 0:02:49.2]} 7. c4
{[%clk 0:03:01.4]} 7... Ngf6 {[%clk 0:02:49.4]} 8. Nc3 {[%clk 0:03:00.4]} 8...
Be7 {[%clk 0:02:49.8]} 9. Nd2 {[%clk 0:02:58.8]} 9... O-O {[%clk 0:02:44.8]} 10.
Qb3 {[%clk 0:02:55.3]} 10... Qb6 {[%clk 0:02:44.6]} 11. Qxb6 {[%clk 0:02:42.8]}
11... Nxb6 {[%clk 0:02:41.9]} 12. b3 {[%clk 0:02:43.5]} 12... a5 {[%clk
0:02:41.9]} 13. a3 {[%clk 0:02:38.1]} 13... Rfd8 {[%clk 0:02:35.6]} 14. c5
{[%clk 0:02:25.5]} 14... Nbd7 {[%clk 0:02:34.4]} 15. Bb2 {[%clk 0:02:26.1]}
15... Bg6 {[%clk 0:02:34.9]} 16. b4 {[%clk 0:02:25.9]} 16... Re8 {[%clk
0:02:25.4]} 17. f3 {[%clk 0:02:15]} 17... Bd8 {[%clk 0:02:24.4]} 18. e4 {[%clk
0:02:14.6]} 18... e5 {[%clk 0:02:24.4]} 19. dxe5 {[%clk 0:02:12.1]} 19... Nxe5
{[%clk 0:02:24.4]} 20. exd5 {[%clk 0:02:05.7]} 20... Nd3 {[%clk 0:02:19]} 21.
dxc6 {[%clk 0:01:46.8]} 21... bxc6 {[%clk 0:02:16.1]} 22. Na4 {[%clk 0:01:31.6]}
22... Nxb2 {[%clk 0:02:10.8]} 23. Nxb2 {[%clk 0:01:31.2]} 23... axb4 {[%clk
0:02:10.5]} 24. axb4 {[%clk 0:01:30.9]} 24... Rb8 {[%clk 0:02:11.6]} 25. Ra4
{[%clk 0:01:17.7]} 25... Nd5 {[%clk 0:02:11.8]} 26. f4 {[%clk 0:01:13.9]} 26...
Bc2 {[%clk 0:02:08.8]} 27. Ra8 {[%clk 0:01:08.9]} 27... Rxa8 {[%clk 0:02:07.2]}
0-1

[Event "*** Titled Tuesday Blitz"]
[Site "Chess.com"]
[Date "2020.01.07"]
[Round "7"]
[White "djano"]
[Black "Kimster98"]
[Result "0-1"]
[WhiteElo "2399"]
[BlackElo "2594"]
[TimeControl "180+2"]
[EndTime "14:33:14 PST"]
[Termination "Kimster98 won by resignation"]

1. c4 {[%clk 0:03:01.7]} 1... e5 {[%clk 0:02:32.7]} 2. Nc3 {[%clk 0:03:02.4]}
2... d6 {[%clk 0:02:33.7]} 3. Nf3 {[%clk 0:03:02.6]} 3... f5 {[%clk 0:02:34.8]}
4. g3 {[%clk 0:03:00.3]} 4... Nf6 {[%clk 0:02:29.7]} 5. Bg2 {[%clk 0:03:01]}
5... c6 {[%clk 0:02:25.8]} 6. d4 {[%clk 0:02:59.7]} 6... e4 {[%clk 0:02:26.8]}
7. Ng5 {[%clk 0:03:01]} 7... d5 {[%clk 0:02:24.9]} 8. f3 {[%clk 0:03:00.3]} 8...
Bd6 {[%clk 0:02:21.4]} 9. fxe4 {[%clk 0:02:58.7]} 9... fxe4 {[%clk 0:02:16.9]}
10. cxd5 {[%clk 0:02:58.2]} 10... cxd5 {[%clk 0:02:17.7]} 11. Qb3 {[%clk
0:02:59.2]} 11... Nc6 {[%clk 0:02:18.3]} 12. Be3 {[%clk 0:02:57.3]} 12... h6
{[%clk 0:01:59.2]} 13. Nh3 {[%clk 0:02:53.6]} 13... Na5 {[%clk 0:01:55]} 14. Qd1
{[%clk 0:02:54.4]} 14... Nc4 {[%clk 0:01:52.6]} 15. Bc1 {[%clk 0:02:53.4]} 15...
Ng4 {[%clk 0:01:34.4]} 16. Nxd5 {[%clk 0:02:43.1]} 16... Qa5+ {[%clk 0:01:34]}
17. Nc3 {[%clk 0:02:42.4]} 17... Nge3 {[%clk 0:01:33.1]} 18. Bxe3 {[%clk
0:02:21.1]} 18... Nxe3 {[%clk 0:01:33.1]} 19. Qb3 {[%clk 0:02:19.4]} 19... Nxg2+
{[%clk 0:01:33.7]} 20. Kf2 {[%clk 0:02:20.8]} 20... Bxh3 {[%clk 0:01:31.8]} 21.
Nxe4 {[%clk 0:02:22]} 21... Qf5+ {[%clk 0:01:19.3]} 22. Qf3 {[%clk 0:02:20.2]}
22... Be7 {[%clk 0:01:08.8]} 23. Rhf1 {[%clk 0:01:58.9]} 23... O-O {[%clk
0:01:02.5]} 24. Kg1 {[%clk 0:02:00.1]} 24... Qxf3 {[%clk 0:01:01.6]} 25. exf3
{[%clk 0:02:00.7]} 25... Ne3 {[%clk 0:01:02.8]} 26. Rf2 {[%clk 0:02:00.7]} 26...
Rac8 {[%clk 0:01:00.5]} 0-1

[Event "*** Titled Tuesday Blitz"]
[Site "Chess.com"]
[Date "2020.01.07"]
[Round "7"]
[White "13MiRacLe"]
[Black "nubair1198"]
[Result "0-1"]
[WhiteElo "2705"]
[BlackElo "2914"]
[TimeControl "180+2"]
[EndTime "14:33:19 PST"]
[Termination "nubair1198 won by resignation"]

1. e4 {[%clk 0:02:57.6]} 1... Nf6 {[%clk 0:03:00.3]} 2. e5 {[%clk 0:02:57.3]}
2... Nd5 {[%clk 0:03:01.8]} 3. d4 {[%clk 0:02:58.9]} 3... d6 {[%clk 0:03:03.2]}
4. c4 {[%clk 0:03:00.4]} 4... Nb6 {[%clk 0:03:04.7]} 5. exd6 {[%clk 0:03:01.8]}
5... cxd6 {[%clk 0:03:06.6]} 6. Nc3 {[%clk 0:03:01.6]} 6... g6 {[%clk
0:03:08.1]} 7. Be3 {[%clk 0:03:03.2]} 7... Bg7 {[%clk 0:03:09.7]} 8. Rc1 {[%clk
0:03:04.8]} 8... O-O {[%clk 0:03:11.3]} 9. b3 {[%clk 0:03:06.4]} 9... e5 {[%clk
0:03:12.7]} 10. dxe5 {[%clk 0:03:06.9]} 10... dxe5 {[%clk 0:03:14.6]} 11. Qxd8
{[%clk 0:03:07.2]} 11... Rxd8 {[%clk 0:03:16.5]} 12. c5 {[%clk 0:03:08.4]} 12...
N6d7 {[%clk 0:03:15.2]} 13. Bc4 {[%clk 0:03:09.5]} 13... Nc6 {[%clk 0:03:16.8]}
14. Ne4 {[%clk 0:03:10.6]} 14... Na5 {[%clk 0:03:12.4]} 15. Bg5 {[%clk
0:03:05.4]} 15... Rf8 {[%clk 0:03:05.6]} 16. Bd5 {[%clk 0:03:06]} 16... h6
{[%clk 0:03:02.7]} 17. Bd2 {[%clk 0:03:06.6]} 17... Nc6 {[%clk 0:03:00.5]} 18.
Nf3 {[%clk 0:02:59.9]} 18... Kh7 {[%clk 0:03:00.6]} 19. Nd6 {[%clk 0:02:51.5]}
19... Ne7 {[%clk 0:03:01.3]} 20. Bxf7 {[%clk 0:02:01.3]} 20... e4 {[%clk
0:02:30.1]} 21. Nxe4 {[%clk 0:01:38]} 21... Rxf7 {[%clk 0:02:29]} 22. O-O {[%clk
0:01:21.4]} 22... Rxf3 {[%clk 0:02:24.6]} 23. gxf3 {[%clk 0:01:21.9]} 23... Ne5
{[%clk 0:02:26.5]} 24. f4 {[%clk 0:01:04.9]} 24... Nf3+ {[%clk 0:02:20.1]} 25.
Kg2 {[%clk 0:01:06.3]} 25... Nh4+ {[%clk 0:02:21.5]} 26. Kh1 {[%clk 0:01:01.1]}
26... Be6 {[%clk 0:02:08.1]} 27. f3 {[%clk 0:00:58.1]} 27... Bd5 {[%clk
0:02:09.5]} 28. Kg1 {[%clk 0:00:56.2]} 28... Bd4+ {[%clk 0:02:05.2]} 29. Kh1
{[%clk 0:00:57.4]} 29... Nxf3 {[%clk 0:02:06.3]} 0-1

[Event "*** Titled Tuesday Blitz"]
[Site "Chess.com"]
[Date "2020.01.07"]
[Round "7"]
[White "Gareth-Bale11"]
[Black "nurmiTV"]
[Result "1-0"]
[WhiteElo "2731"]
[BlackElo "2545"]
[TimeControl "180+2"]
[EndTime "14:33:29 PST"]
[Termination "Gareth-Bale11 won by resignation"]

1. e4 {[%clk 0:03:01.9]} 1... c5 {[%clk 0:02:59.7]} 2. Nf3 {[%clk 0:03:02.3]}
2... e6 {[%clk 0:03:01]} 3. b3 {[%clk 0:03:02.2]} 3... Nf6 {[%clk 0:02:58.6]} 4.
e5 {[%clk 0:03:03]} 4... Nd5 {[%clk 0:02:59.1]} 5. Bb2 {[%clk 0:03:02.5]} 5...
Nc6 {[%clk 0:02:58.8]} 6. Be2 {[%clk 0:03:01.8]} 6... d6 {[%clk 0:02:54.9]} 7.
exd6 {[%clk 0:03:02.7]} 7... Bxd6 {[%clk 0:02:51.8]} 8. O-O {[%clk 0:02:59.6]}
8... O-O {[%clk 0:02:50.9]} 9. Re1 {[%clk 0:02:59.7]} 9... e5 {[%clk 0:02:48.1]}
10. Na3 {[%clk 0:02:48.1]} 10... e4 {[%clk 0:02:34.3]} 11. Bc4 {[%clk 0:02:48]}
11... exf3 {[%clk 0:02:08.9]} 12. Bxd5 {[%clk 0:02:47.4]} 12... fxg2 {[%clk
0:02:09.8]} 13. Bxg2 {[%clk 0:02:49.3]} 13... Qh4 {[%clk 0:02:05.4]} 14. Nc4
{[%clk 0:02:31.8]} 14... Qxh2+ {[%clk 0:01:58.4]} 15. Kf1 {[%clk 0:02:32.3]}
15... Bh3 {[%clk 0:01:58.2]} 16. Qf3 {[%clk 0:02:29]} 16... Qh1+ {[%clk
0:01:51.8]} 17. Ke2 {[%clk 0:02:26.8]} 17... Rfe8+ {[%clk 0:01:51.4]} 18. Kd3
{[%clk 0:02:24.1]} 18... Nb4+ {[%clk 0:01:41.1]} 19. Kc3 {[%clk 0:02:23.8]}
19... Rxe1 {[%clk 0:01:16.7]} 20. Bxh1 {[%clk 0:02:19.1]} 20... Bf1 {[%clk
0:00:23.4]} 21. Nxd6 {[%clk 0:02:10.6]} 21... Rd8 {[%clk 0:00:18.9]} 22. Qxf7+
{[%clk 0:02:02.4]} 22... Kh8 {[%clk 0:00:19.4]} 23. a3 {[%clk 0:02:01.1]} 1-0

[Event "*** Titled Tuesday Blitz"]
[Site "Chess.com"]
[Date "2020.01.07"]
[Round "7"]
[White "ural58"]
[Black "Kostina_Nadezhda"]
[Result "0-1"]
[WhiteElo "2329"]
[BlackElo "2163"]
[TimeControl "180+2"]
[EndTime "14:33:32 PST"]
[Termination "Kostina_Nadezhda won by resignation"]

1. e4 {[%clk 0:03:01.9]} 1... c5 {[%clk 0:03:00.5]} 2. b3 {[%clk 0:02:54.3]}
2... Nf6 {[%clk 0:02:58.5]} 3. e5 {[%clk 0:02:31.5]} 3... Nd5 {[%clk 0:02:57.2]}
4. Nc3 {[%clk 0:02:32.4]} 4... Nxc3 {[%clk 0:02:57.7]} 5. dxc3 {[%clk
0:02:19.5]} 5... Nc6 {[%clk 0:02:58.1]} 6. Nf3 {[%clk 0:02:19.2]} 6... Qc7
{[%clk 0:02:56.9]} 7. Bf4 {[%clk 0:02:16.5]} 7... g6 {[%clk 0:02:45.2]} 8. Bc4
{[%clk 0:02:05.2]} 8... Bg7 {[%clk 0:02:43.4]} 9. Bxf7+ {[%clk 0:02:05.2]} 9...
Kf8 {[%clk 0:02:39.6]} 10. O-O {[%clk 0:00:41.1]} 10... Nxe5 {[%clk 0:02:39]}
11. Bxe5 {[%clk 0:00:39.8]} 11... Bxe5 {[%clk 0:02:38.7]} 12. Qd5 {[%clk
0:00:32.3]} 12... Bf6 {[%clk 0:02:32.2]} 13. Rae1 {[%clk 0:00:15.3]} 13... e6
{[%clk 0:02:18.1]} 14. Bxe6 {[%clk 0:00:16.4]} 14... dxe6 {[%clk 0:02:18.8]} 15.
Qc4 {[%clk 0:00:16.4]} 15... Bd7 {[%clk 0:02:10.4]} 16. b4 {[%clk 0:00:16.7]}
16... Rc8 {[%clk 0:02:07.6]} 17. b5 {[%clk 0:00:17]} 17... Kg7 {[%clk
0:02:01.8]} 18. a4 {[%clk 0:00:15.8]} 18... Rhe8 {[%clk 0:01:48]} 19. h4 {[%clk
0:00:17.7]} 19... e5 {[%clk 0:01:47.7]} 20. h5 {[%clk 0:00:19.6]} 20... Be6
{[%clk 0:01:45.8]} 21. hxg6 {[%clk 0:00:21.5]} 21... Bxc4 {[%clk 0:01:46.5]} 0-1

[Event "*** Titled Tuesday Blitz"]
[Site "Chess.com"]
[Date "2020.01.07"]
[Round "7"]
[White "esteban062000"]
[Black "HrvojeZagreb"]
[Result "0-1"]
[WhiteElo "2057"]
[BlackElo "2220"]
[TimeControl "180+2"]
[EndTime "14:33:54 PST"]
[Termination "HrvojeZagreb won by resignation"]

1. Nf3 {[%clk 0:02:45.8]} 1... f5 {[%clk 0:03:00.3]} 2. b3 {[%clk 0:02:44.8]}
2... Nf6 {[%clk 0:03:00.6]} 3. Bb2 {[%clk 0:02:45.9]} 3... d6 {[%clk 0:03:02.2]}
4. c4 {[%clk 0:02:45.7]} 4... e5 {[%clk 0:03:03.2]} 5. d3 {[%clk 0:02:47.3]}
5... Be7 {[%clk 0:03:03.9]} 6. g3 {[%clk 0:02:48.8]} 6... O-O {[%clk 0:03:05]}
7. Bg2 {[%clk 0:02:50.5]} 7... Qe8 {[%clk 0:03:05.1]} 8. b4 {[%clk 0:02:51]}
8... a5 {[%clk 0:03:05.9]} 9. b5 {[%clk 0:02:51.5]} 9... Nbd7 {[%clk 0:03:06.9]}
10. O-O {[%clk 0:02:52]} 10... a4 {[%clk 0:03:04.7]} 11. a3 {[%clk 0:02:51.8]}
11... Nc5 {[%clk 0:03:05.9]} 12. Nbd2 {[%clk 0:02:52.4]} 12... Qh5 {[%clk
0:03:05.4]} 13. Qc2 {[%clk 0:02:51]} 13... f4 {[%clk 0:03:01.8]} 14. d4 {[%clk
0:02:51.8]} 14... Bf5 {[%clk 0:02:59.1]} 15. Qc1 {[%clk 0:02:46.9]} 15... exd4
{[%clk 0:02:43.4]} 16. Bxd4 {[%clk 0:02:46.4]} 16... Bh3 {[%clk 0:02:32.5]} 17.
Bxc5 {[%clk 0:02:44.1]} 17... dxc5 {[%clk 0:02:16.1]} 18. Qc3 {[%clk 0:02:43.8]}
18... Ng4 {[%clk 0:02:12.8]} 19. Qc2 {[%clk 0:02:02.2]} 19... Bf6 {[%clk
0:02:02.8]} 20. Rab1 {[%clk 0:02:01.9]} 20... Bd4 {[%clk 0:01:57.4]} 21. Nh4
{[%clk 0:01:29.7]} 21... Bxg2 {[%clk 0:01:07.5]} 22. Kxg2 {[%clk 0:01:31.6]}
22... fxg3 {[%clk 0:01:05]} 23. hxg3 {[%clk 0:01:04.9]} 23... Rxf2+ {[%clk
0:00:54.1]} 24. Rxf2 {[%clk 0:00:57.5]} 24... Ne3+ {[%clk 0:00:54.7]} 0-1

[Event "*** Titled Tuesday Blitz"]
[Site "Chess.com"]
[Date "2020.01.07"]
[Round "7"]
[White "kasparicy"]
[Black "Borsuk_Konstantin"]
[Result "0-1"]
[WhiteElo "2314"]
[BlackElo "2485"]
[TimeControl "180+2"]
[EndTime "14:34:14 PST"]
[Termination "Borsuk_Konstantin won by resignation"]

1. e4 {[%clk 0:02:52.3]} 1... e6 {[%clk 0:03:00.4]} 2. d4 {[%clk 0:02:52.5]}
2... d5 {[%clk 0:03:02.3]} 3. Nd2 {[%clk 0:02:53.9]} 3... Nf6 {[%clk 0:03:02.9]}
4. e5 {[%clk 0:02:54.7]} 4... Nfd7 {[%clk 0:03:04.4]} 5. Bd3 {[%clk 0:02:56.3]}
5... c5 {[%clk 0:03:06.3]} 6. c3 {[%clk 0:02:58]} 6... Nc6 {[%clk 0:03:07.7]} 7.
Ngf3 {[%clk 0:02:58.7]} 7... b6 {[%clk 0:03:08.4]} 8. O-O {[%clk 0:02:59.6]}
8... cxd4 {[%clk 0:03:09.6]} 9. cxd4 {[%clk 0:03:00.5]} 9... Nb4 {[%clk
0:03:10.7]} 10. Bb1 {[%clk 0:03:01.3]} 10... Ba6 {[%clk 0:03:11.7]} 11. Re1
{[%clk 0:02:59.6]} 11... Nd3 {[%clk 0:03:12.4]} 12. Re3 {[%clk 0:02:59.8]} 12...
Nxc1 {[%clk 0:03:07.9]} 13. Qxc1 {[%clk 0:03:01.7]} 13... Rc8 {[%clk 0:03:07.7]}
14. Rc3 {[%clk 0:03:02.7]} 14... Bb4 {[%clk 0:03:05.1]} 15. Rxc8 {[%clk
0:03:02.4]} 15... Qxc8 {[%clk 0:03:05.9]} 16. Qxc8+ {[%clk 0:03:03.2]} 16...
Bxc8 {[%clk 0:03:06.4]} 17. a3 {[%clk 0:03:03.9]} 17... Be7 {[%clk 0:03:02.8]}
18. Bd3 {[%clk 0:03:04.8]} 18... f6 {[%clk 0:02:55.8]} 19. Rc1 {[%clk
0:02:59.6]} 19... Kd8 {[%clk 0:02:56.9]} 20. Kf1 {[%clk 0:02:35.9]} 20... f5
{[%clk 0:02:38.4]} 21. Ke2 {[%clk 0:02:31.8]} 21... g5 {[%clk 0:02:38.9]} 22. b4
{[%clk 0:02:30.4]} 22... g4 {[%clk 0:02:25.5]} 23. Ne1 {[%clk 0:02:30.6]} 23...
h5 {[%clk 0:02:18.6]} 24. f4 {[%clk 0:02:27.6]} 24... Nf8 {[%clk 0:02:08.8]} 25.
Nc2 {[%clk 0:02:14.5]} 25... Ng6 {[%clk 0:02:08]} 26. Ke3 {[%clk 0:02:15.8]}
26... h4 {[%clk 0:02:06]} 27. Nb3 {[%clk 0:01:56.2]} 27... Bd7 {[%clk
0:02:01.9]} 28. Rf1 {[%clk 0:01:51.5]} 28... Ba4 {[%clk 0:01:50.4]} 29. Nc1
{[%clk 0:01:52.4]} 29... Kd7 {[%clk 0:01:48.9]} 30. Ne2 {[%clk 0:01:53.1]} 30...
Rc8 {[%clk 0:01:48.1]} 31. Rc1 {[%clk 0:01:53.8]} 31... a5 {[%clk 0:01:48.5]}
32. bxa5 {[%clk 0:01:39.7]} 32... bxa5 {[%clk 0:01:49.5]} 33. Kd2 {[%clk
0:01:33]} 33... Rb8 {[%clk 0:01:46.3]} 34. Nc3 {[%clk 0:01:28.5]} 34... Bxc2
{[%clk 0:01:30.3]} 35. Bxc2 {[%clk 0:01:23]} 35... Bxa3 {[%clk 0:01:18.6]} 36.
Ba4+ {[%clk 0:01:22.9]} 36... Ke7 {[%clk 0:01:15.8]} 37. Nb5 {[%clk 0:01:21.1]}
37... Bxc1+ {[%clk 0:01:15.7]} 0-1